fUST/lending_fUST_20240910
["ID","MTS","AMOUNT","RATE_DAILY","PERIOD"]
[337704169,1725978651722,-500.0,0.00018016,2]
[337704170,1725978651731,-946.51,0.00018016,2]
[337704171,1725978651741,-896.12,0.00018016,2]
[337704172,1725978651750,-560.68,0.00018016,2]
[337704173,1725978651760,-1460.92,0.00018016,2]
[337704174,1725978651769,-500.0,0.00018016,2]
[337704175,1725978651778,-719.06,0.00018016,2]
[337704176,1725978651788,-500.0,0.00018016,2]
[337704177,1725978651797,-6457.87,0.00018016,2]
[337704178,1725978651807,-3655.78,0.00018016,2]
[337704179,1725978651818,-500.0,0.00018016,2]
[337704180,1725978651828,-825.61,0.00018016,2]
[337704181,1725978651837,-500.0,0.00018016,2]
[337704182,1725978651847,-1083.82,0.00018016,2]
[337704183,1725978651857,-500.0,0.00018016,2]
[337704184,1725978651866,-3373.62,0.00018016,2]
[337704185,1725978651876,-500.0,0.00018016,2]
[337704186,1725978651886,-814.19,0.00018016,2]
[337704187,1725978651895,-1239.77,0.00018016,2]
[337704188,1725978651904,-1927.32,0.00018016,2]
[337704189,1725978651914,-500.0,0.00018016,2]
[337704190,1725978651924,-646.35,0.00018016,2]
[337704191,1725978651933,-500.0,0.00018016,2]
[337704192,1725978651943,-500.0,0.00018016,2]
[337704193,1725978651952,-500.0,0.00018016,2]
[337704194,1725978651962,-1433.94,0.00018016,2]
[337704195,1725978651971,-1388.51,0.00018016,2]
[337704196,1725978651981,-500.0,0.00018016,2]
[337704197,1725978651991,-500.0,0.00018016,2]
[337704198,1725978652001,-1735.76,0.00018016,2]
[337704199,1725978652010,-500.0,0.00018016,2]
[337704200,1725978652020,-43571.79,0.00018016,2]
[337704201,1725978652029,-1544.3,0.00018016,2]
[337704202,1725978652039,-1907.63,0.00018016,2]
[337704203,1725978652048,-1709.52,0.00018016,2]
[337704204,1725978652057,-500.0,0.00018016,2]
[337704205,1725978652069,-722.11,0.00018016,2]
[337704206,1725978652078,-500.0,0.00018017,2]
[337704207,1725978652087,-500.0,0.00018017,2]
[337704208,1725978652096,-225.54195192,0.00018017,2]
[337704209,1725978652105,-1061.76,0.00018017,2]
[337704210,1725978652115,-500.0,0.00018017,2]
[337704211,1725978652126,-500.0,0.00018017,2]
[337704212,1725978652135,-1267.28,0.00018017,2]
[337704213,1725978652144,-500.0,0.00018017,2]
[337704214,1725978652154,-500.0,0.00018017,2]
[337704215,1725978652163,-648.58815591,0.00018017,2]
[337704216,1725978652172,-2130.5,0.00018017,2]
[337704217,1725978652181,-500.0,0.00018017,2]
[337704218,1725978652191,-836.36,0.00018017,2]
[337704219,1725978652200,-524.01,0.00018017,2]
[337704220,1725978652210,-1396.41,0.00018017,2]
[337704221,1725978652220,-500.0,0.00018017,2]
[337704222,1725978652231,-1349.49,0.00018017,2]
[337704223,1725978652240,-601.79,0.00018017,2]
[337704224,1725978652250,-3788.79,0.00018017,2]
[337704225,1725978652260,-1680.93,0.00018017,2]
[337704226,1725978652270,-500.0,0.00018017,2]
[337704227,1725978652279,-2946.47,0.00018017,2]
[337704228,1725978652289,-1328.16,0.00018017,2]
[337704229,1725978652301,-500.0,0.00018017,2]
[337704230,1725978652312,-500.0,0.00018017,2]
[337704231,1725978652326,-3875.89,0.00018017,2]
[337704232,1725978652335,-898.48,0.00018017,2]
[337704233,1725978652345,-1727.47,0.00018017,2]
[337704234,1725978652354,-915.15,0.00018017,2]
[337704235,1725978652363,-500.0,0.00018017,2]
[337704236,1725978652373,-3285.63,0.00018017,2]
[337704237,1725978652383,-511.51,0.00018017,2]
[337704238,1725978652392,-500.0,0.00018017,2]
[337704239,1725978652402,-151.0,0.00018017,2]
[337704240,1725978652412,-522.85,0.00018017,2]
[337704241,1725978652421,-500.0,0.00018017,2]
[337704242,1725978652431,-500.0,0.00018017,2]
[337704243,1725978652440,-1570.05,0.00018017,2]
[337704244,1725978652450,-595.58,0.00018017,2]
[337704245,1725978652460,-151.0,0.00018017,2]
[337704246,1725978652470,-670.22,0.00018017,2]
[337704247,1725978652480,-873.9,0.00018017,2]
[337704248,1725978652490,-151.0,0.00018017,2]
[337704249,1725978652500,-1476.17,0.00018017,2]
[337704250,1725978652510,-566.49,0.00018017,2]
[337704251,1725978652520,-657.58,0.00018017,2]
[337704252,1725978652529,-151.0,0.00018017,2]
[337704253,1725978652539,-500.0,0.00018017,2]
[337704254,1725978652548,-500.0,0.00018017,2]
[337704255,1725978652558,-500.0,0.00018017,2]
[337704256,1725978652572,-707.69,0.00018017,2]
[337704257,1725978652586,-500.0,0.00018017,2]
[337704258,1725978652596,-820.34,0.00018017,2]
[337704259,1725978652605,-151.0,0.00018017,2]
[337704260,1725978652615,-500.0,0.00018017,2]
[337704261,1725978652624,-500.0,0.00018017,2]
[337704262,1725978652634,-35121.18,0.00018017,2]
[337704263,1725978652643,-500.0,0.00018017,2]
[337704264,1725978652653,-654.91,0.00018017,2]
[337704265,1725978652662,-500.0,0.00018018,2]
[337704266,1725978652671,-611.15609238,0.00018018,2]
[337704267,1725978652681,-500.0,0.00018018,2]
[337704268,1725978652691,-500.0,0.00018018,2]
[337704269,1725978652700,-500.0,0.00018018,2]
[337704270,1725978652710,-500.0,0.00018018,2]
[337704271,1725978652719,-889.23,0.00018018,2]
[337704272,1725978652728,-500.0,0.00018018,2]
[337704273,1725978652736,-552.29222256,0.00018018,2]
[337704274,1725978652746,-500.0,0.00018018,2]
[337704275,1725978652755,-1146.11,0.00018018,2]
[337704276,1725978652764,-214.41,0.00018018,2]
[337704277,1725978652774,-500.0,0.00018018,2]
[337704278,1725978652783,-500.0,0.00018018,2]
[337704279,1725978652792,-500.0,0.00018018,2]
[337704280,1725978652801,-450.06675238,0.00018018,2]
[337704281,1725978652810,-594.23472879,0.00018018,2]
[337704282,1725978652824,-564.64,0.00018018,2]
[337704283,1725978652834,-535.25,0.00018018,2]
[337704284,1725978652843,-500.0,0.00018018,2]
[337704285,1725978652853,-500.0,0.00018018,2]
[337704286,1725978652863,-500.0,0.00018018,2]
[337704287,1725978652872,-500.0,0.00018018,2]
[337704288,1725978652882,-500.0,0.00018018,2]
[337704289,1725978652892,-355.70083475,0.00018018,2]
[337704290,1725978652901,-500.0,0.00018018,2]
[337704291,1725978652910,-500.0,0.00018018,2]
[337704292,1725978652920,-500.0,0.00018018,2]
[337704293,1725978652929,-585.59,0.00018018,2]
[337704294,1725978652939,-500.0,0.00018018,2]
[337704295,1725978652949,-500.0,0.00018018,2]
[337704296,1725978652958,-500.0,0.00018018,2]
[337704297,1725978652967,-1215.13,0.00018018,2]
[337704298,1725978652977,-500.0,0.00018018,2]
[337704299,1725978652987,-500.0,0.00018018,2]
[337704300,1725978652996,-500.0,0.00018018,2]
[337704301,1725978653006,-500.0,0.00018018,2]
[337704302,1725978653016,-500.0,0.00018018,2]
[337704303,1725978653026,-500.0,0.00018018,2]
[337704304,1725978653036,-175.910052,0.00018018,2]
[337704305,1725978653046,-500.0,0.00018018,2]
[337704306,1725978653058,-500.0,0.00018018,2]
[337704307,1725978653077,-500.0,0.00018018,2]
[337704308,1725978653087,-500.0,0.00018018,2]
[337704309,1725978653096,-652.31,0.00018018,2]
[337704310,1725978653106,-500.0,0.00018018,2]
[337704311,1725978653115,-500.0,0.00018018,2]
[337704312,1725978653125,-781.83,0.00018018,2]
[337704313,1725978653134,-578.86,0.00018018,2]
[337704314,1725978653143,-500.0,0.00018018,2]
[337704315,1725978653153,-500.0,0.00018018,2]
[337704316,1725978653162,-500.0,0.00018018,2]
[337704317,1725978653173,-226.777227,0.00018018,2]
[337704318,1725978653183,-500.0,0.00018018,2]
[337704319,1725978653193,-267.72848109,0.00018018,2]
[337704320,1725978653203,-226.777227,0.00018018,2]
[337704321,1725978653213,-500.0,0.00018018,2]
[337704322,1725978653227,-500.0,0.00018018,2]
[337704323,1725978653237,-919.34,0.00018018,2]
[337704324,1725978653246,-1056.27,0.00018018,2]
[337704325,1725978653259,-1590.4,0.00018018,2]
[337704326,1725978653268,-500.0,0.00018018,2]
[337704327,1725978653278,-500.0,0.00018018,2]
[337704328,1725978653288,-500.0,0.00018018,2]
[337704329,1725978653299,-500.0,0.00018018,2]
[337704330,1725978653309,-500.0,0.00018018,2]
[337704331,1725978653326,-608.49,0.00018018,2]
[337704332,1725978653471,-583.56,0.00018018,2]
[337704333,1725978653481,-500.0,0.00018018,2]
[337704334,1725978653491,-500.0,0.00018018,2]
[337704335,1725978653501,-1068.04,0.00018018,2]
[337704336,1725978653511,-500.0,0.00018018,2]
[337704337,1725978653521,-273.63235,0.00018018,2]
[337704338,1725978653531,-500.0,0.00018018,2]
[337704339,1725978653541,-273.63235,0.00018018,2]
[337704340,1725978653551,-541.65,0.00018018,2]
[337704341,1725978653560,-1031.74,0.00018018,2]
[337704342,1725978653572,-500.0,0.00018018,2]
[337704343,1725978653582,-500.0,0.00018018,2]
[337704344,1725978653592,-157.003971,0.00018018,2]
[337704345,1725978653601,-500.0,0.00018018,2]
[337704346,1725978653611,-1114.27,0.00018018,2]
[337704347,1725978653622,-500.0,0.00018018,2]
[337704348,1725978653633,-500.0,0.00018018,2]
[337704349,1725978653642,-500.0,0.00018018,2]
[337704350,1725978653652,-500.0,0.00018018,2]
[337704351,1725978653662,-500.0,0.00018018,2]
[337704352,1725978653672,-575.42,0.00018018,2]
[337704353,1725978653681,-406.23175322,0.00018018,2]
[337704354,1725978653691,-554.47,0.00018018,2]
[337704355,1725978653701,-500.0,0.00018018,2]
[337704356,1725978653711,-500.0,0.00018018,2]
[337704357,1725978653720,-500.0,0.00018018,2]
[337704358,1725978653731,-500.0,0.00018018,2]
[337704359,1725978653741,-500.0,0.00018018,2]
[337704360,1725978653751,-500.0,0.00018018,2]
[337704361,1725978653760,-454.50582054,0.00018018,2]
[337704362,1725978653770,-661.06,0.00018018,2]
[337704363,1725978653779,-151.0,0.00018018,2]
[337704364,1725978653789,-500.0,0.00018018,2]
[337704365,1725978653798,-500.0,0.00018018,2]
[337704366,1725978653808,-151.0,0.00018018,2]
[337704367,1725978653823,-513.8,0.00018018,2]
[337704368,1725978653832,-151.0,0.00018018,2]
[337704369,1725978653842,-500.0,0.00018018,2]
[337704370,1725978653851,-500.0,0.00018018,2]
[337704371,1725978653861,-500.0,0.00018018,2]
[337704372,1725978653869,-833.34,0.00018018,2]
[337704373,1725978653879,-500.0,0.00018018,2]
[337704374,1725978653888,-2347.21,0.00018018,2]
[337704375,1725978653898,-151.0,0.00018018,2]
[337704376,1725978653907,-5313.14,0.00018018,2]
[337704377,1725978653917,-500.0,0.00018018,2]
[337704378,1725978653926,-500.0,0.00018018,2]
[337704379,1725978653936,-493.75114129,0.00018018,2]
[337704380,1725978653946,-500.0,0.00018018,2]
[337704381,1725978653955,-500.0,0.00018018,2]
[337704382,1725978653966,-500.0,0.00018018,2]
[337704383,1725978653975,-639.52,0.00018018,2]
[337704384,1725978653985,-500.0,0.00018018,2]
[337704385,1725978653995,-500.0,0.00018018,2]
[337704386,1725978654005,-500.0,0.00018018,2]
[337704387,1725978654014,-208.125817,0.00018018,2]
[337704388,1725978654024,-500.0,0.00018018,2]
[337704389,1725978654034,-1756.55,0.00018018,2]
[337704390,1725978654044,-500.0,0.00018018,2]
[337704391,1725978654054,-151.0,0.00018018,2]
[337704392,1725978654064,-151.0,0.00018018,2]
[337704393,1725978654077,-500.0,0.00018018,2]
[337704394,1725978654087,-500.0,0.00018018,2]
[337704395,1725978654097,-500.0,0.00018018,2]
[337704396,1725978654106,-500.0,0.00018018,2]
[337704397,1725978654116,-1213.25,0.00018018,2]
[337704398,1725978654126,-500.0,0.00018018,2]
[337704399,1725978654136,-791.74,0.00018018,2]
[337704400,1725978654145,-1780.0,0.00018018,2]
[337704401,1725978654155,-649.17,0.00018018,2]
[337704402,1725978654165,-3628.55,0.00018018,2]
[337704403,1725978654175,-500.0,0.00018018,2]
[337704404,1725978654184,-507.46,0.00018018,2]
[337704405,1725978654194,-37.21525226,0.00018018,2]
[337704406,1725978654463,-462.78474774,0.00018018,2]
[337704407,1725978654473,-217.23945921,0.00018018,2]
[337704408,1725978654494,-282.76054079,0.00018018,2]
[337704409,1725978654503,-218.145404,0.00018018,2]
[337704410,1725978654513,-500.0,0.00018018,2]
[337704411,1725978654524,-500.0,0.00018018,2]
[337704412,1725978654533,-218.145404,0.00018018,2]
[337704413,1725978654543,-151.0,0.00018018,2]
[337704414,1725978654552,-151.0,0.00018018,2]
[337704415,1725978654562,-500.0,0.00018018,2]
[337704416,1725978654575,-500.0,0.00018018,2]
[337704417,1725978654585,-242.1887,0.00018018,2]
[337704418,1725978654594,-594.15,0.00018018,2]
[337704419,1725978654604,-242.1887,0.00018018,2]
[337704420,1725978654613,-920.89,0.00018018,2]
[337704421,1725978654622,-723.87,0.00018018,2]
[337704422,1725978654631,-500.0,0.00018018,2]
[337704423,1725978654641,-738.23,0.00018018,2]
[337704424,1725978654651,-500.0,0.00018018,2]
[337704425,1725978654660,-500.0,0.00018018,2]
[337704426,1725978654669,-500.0,0.00018018,2]
[337704427,1725978654679,-919.99,0.00018018,2]
[337704428,1725978654688,-657.01,0.00018018,2]
[337704429,1725978654698,-500.0,0.00018018,2]
[337704430,1725978654708,-537.73,0.00018018,2]
[337704431,1725978654717,-688.52,0.00018018,2]
[337704432,1725978654727,-268.947444,0.00018018,2]
[337704433,1725978654737,-267.505544,0.00018018,2]
[337704434,1725978654747,-797.39,0.00018018,2]
[337704435,1725978654757,-268.947444,0.00018018,2]
[337704436,1725978654768,-547.81755645,0.00018018,2]
[337704437,1725978654777,-251.618892,0.00018018,2]
[337704438,1725978654787,-1331.24,0.00018018,2]
[337704439,1725978654798,-251.618892,0.00018018,2]
[337704440,1725978654808,-171.74745047,0.00018018,2]
[337704441,1725978654819,-500.0,0.00018018,2]
[337704442,1725978654828,-674.49,0.00018018,2]
[337704443,1725978654838,-151.0,0.00018018,2]
[337704444,1725978654848,-3382.61,0.00018018,2]
[337704445,1725978654860,-1098.27,0.00018018,2]
[337704446,1725978654870,-500.0,0.00018018,2]
[337704447,1725978654880,-151.0,0.00018018,2]
[337704448,1725978654890,-500.0,0.00018018,2]
[337704449,1725978654899,-500.0,0.00018018,2]
[337704450,1725978654909,-915.37,0.00018018,2]
[337704451,1725978654918,-61160.58,0.00018018,2]
[337704452,1725978654927,-500.0,0.00018018,2]
[337704453,1725978654935,-743.54,0.00018018,2]
[337704454,1725978654945,-566.05,0.00018018,2]
[337704455,1725978654954,-500.0,0.00018018,2]
[337704456,1725978654964,-151.0,0.00018018,2]
[337704457,1725978654973,-500.0,0.00018018,2]
[337704458,1725978654982,-500.0,0.00018018,2]
[337704459,1725978654991,-645.37,0.00018018,2]
[337704460,1725978655001,-503.52,0.00018018,2]
[337704461,1725978655010,-500.0,0.00018018,2]
[337704462,1725978655020,-500.0,0.00018018,2]
[337704463,1725978655029,-151.0,0.00018019,2]
[337704464,1725978655039,-745.25,0.00018019,2]
[337704465,1725978655049,-922.61,0.00018019,2]
[337704466,1725978655058,-832.2,0.00018019,2]
[337704467,1725978655070,-626.38,0.00018019,2]
[337704468,1725978655079,-568.21,0.00018019,2]
[337704469,1725978655089,-1489.04,0.00018019,2]
[337704470,1725978655099,-1776.53,0.00018019,2]
[337704471,1725978655108,-500.0,0.00018019,2]
[337704472,1725978655117,-1005.57,0.00018019,2]
[337704473,1725978655127,-152.319445,0.00018019,2]
[337704474,1725978655136,-1000.55,0.00018019,2]
[337704475,1725978655145,-151.0,0.00018019,2]
[337704476,1725978655282,-712.7,0.00018019,2]
[337704477,1725978655292,-703.96,0.00018019,2]
[337704478,1725978655303,-1508.61,0.00018019,2]
[337704479,1725978655313,-151.0,0.00018019,2]
[337704480,1725978655326,-1561.22,0.00018019,2]
[337704481,1725978655336,-1272.99,0.00018019,2]
[337704482,1725978655345,-1800.64,0.00018019,2]
[337704483,1725978655355,-500.0,0.00018019,2]
[337704484,1725978655364,-500.0,0.00018019,2]
[337704485,1725978655374,-581.4,0.00018019,2]
[337704486,1725978655383,-1021.38,0.00018019,2]
[337704487,1725978655393,-937.91,0.00018019,2]
[337704488,1725978655403,-895.69,0.00018019,2]
[337704489,1725978655412,-1686.12,0.00018019,2]
[337704490,1725978655422,-4325.82,0.00018019,2]
[337704491,1725978655431,-1415.09,0.00018019,2]
[337704492,1725978655442,-500.0,0.00018019,2]
[337704493,1725978655452,-500.0,0.00018019,2]
[337704494,1725978655462,-681.5,0.00018019,2]
[337704495,1725978655472,-7305.29,0.00018019,2]
[337704496,1725978655481,-604.05,0.00018019,2]
[337704497,1725978655493,-1148.23,0.00018019,2]
[337704498,1725978655503,-645.61,0.00018019,2]
[337704499,1725978655513,-853.62,0.00018019,2]
[337704500,1725978655522,-1402.39,0.00018019,2]
[337704501,1725978655532,-640.07,0.00018019,2]
[337704502,1725978655543,-538.11,0.00018019,2]
[337704503,1725978655552,-1926.57,0.00018019,2]
[337704504,1725978655562,-151.0,0.00018019,2]
[337704505,1725978655573,-151.0,0.00018019,2]
[337704506,1725978655583,-500.0,0.00018019,2]
[337704507,1725978655593,-242.1887,0.00018019,2]
[337704508,1725978655603,-500.0,0.00018019,2]
[337704509,1725978655612,-242.1887,0.00018019,2]
[337704510,1725978655621,-380.88800583,0.00018019,2]
[337704511,1725978655630,-1648.15,0.00018019,2]
[337704512,1725978655639,-715.14,0.00018019,2]
[337704513,1725978655649,-696.64,0.00018019,2]
[337704514,1725978655658,-500.0,0.00018019,2]
[337704515,1725978655667,-500.0,0.00018019,2]
[337704516,1725978655677,-268.947444,0.00018019,2]
[337704517,1725978655687,-268.947444,0.00018019,2]
[337704518,1725978655697,-251.618892,0.00018019,2]
[337704519,1725978655706,-251.618892,0.00018019,2]
[337704520,1725978655715,-564.77,0.00018019,2]
[337704521,1725978655724,-226.777227,0.0001802,2]
[337704522,1725978655733,-226.777227,0.0001802,2]
[337704523,1725978655743,-500.0,0.00018021,2]
[337704524,1725978655753,-153.484038,0.00018021,2]
[337704525,1725978655763,-500.0,0.00018021,2]
[337704526,1725978655772,-500.0,0.00018021,2]
[337704527,1725978655781,-500.0,0.00018021,2]
[337704528,1725978655790,-500.0,0.00018021,2]
[337704529,1725978655800,-810.62,0.00018021,2]
[337704530,1725978655810,-607.23,0.00018021,2]
[337704531,1725978655822,-500.0,0.00018021,2]
[337704532,1725978655831,-516.76,0.00018021,2]
[337704533,1725978655842,-1158.99,0.00018021,2]
[337704534,1725978655852,-500.0,0.00018021,2]
[337704535,1725978655861,-500.0,0.00018021,2]
[337704536,1725978655871,-500.0,0.00018021,2]
[337704537,1725978655880,-543.5,0.00018021,2]
[337704538,1725978655890,-1193.48,0.00018021,2]
[337704539,1725978655899,-500.0,0.00018021,2]
[337704540,1725978655909,-500.0,0.00018021,2]
[337704541,1725978655919,-383.97652021,0.00018021,2]
[337704542,1725978655929,-500.0,0.00018021,2]
[337704543,1725978655939,-500.0,0.00018021,2]
[337704544,1725978655949,-688.91,0.00018021,2]
[337704545,1725978655958,-869.57,0.00018021,2]
[337704546,1725978655967,-500.0,0.00018021,2]
[337704547,1725978655977,-543.76231335,0.00018021,2]
[337704548,1725978655987,-500.0,0.00018021,2]
[337704549,1725978655997,-500.0,0.00018021,2]
[337704550,1725978656006,-500.0,0.00018021,2]
[337704551,1725978656016,-526.04,0.00018021,2]
[337704552,1725978656025,-631.47,0.00018021,2]
[337704553,1725978656035,-574.65,0.00018021,2]
[337704554,1725978656044,-543.47,0.00018021,2]
[337704555,1725978656055,-500.0,0.00018021,2]
[337704556,1725978656064,-500.0,0.00018021,2]
[337704557,1725978656074,-500.0,0.00018021,2]
[337704558,1725978656084,-500.0,0.00018021,2]
[337704559,1725978656096,-500.0,0.00018021,2]
[337704560,1725978656106,-500.0,0.00018021,2]
[337704561,1725978656118,-500.0,0.00018021,2]
[337704562,1725978656127,-152.744307,0.00018021,2]
[337704563,1725978656137,-500.0,0.00018021,2]
[337704564,1725978656148,-1039.5,0.00018021,2]
[337704565,1725978656158,-1733.67,0.00018021,2]
[337704566,1725978656169,-500.0,0.00018021,2]
[337704567,1725978656179,-854.07,0.00018021,2]
[337704568,1725978656188,-500.0,0.00018021,2]
[337704569,1725978656198,-500.0,0.00018021,2]
[337704570,1725978656208,-1034.0,0.00018021,2]
[337704571,1725978656218,-500.0,0.00018021,2]
[337704572,1725978656235,-500.0,0.00018021,2]
[337704573,1725978656246,-500.0,0.00018021,2]
[337704574,1725978656268,-500.0,0.00018021,2]
[337704575,1725978656286,-737.41,0.00018021,2]
[337704576,1725978656301,-500.0,0.00018021,2]
[337704577,1725978656320,-500.0,0.00018021,2]
[337704578,1725978656336,-1115.99,0.00018021,2]
[337704579,1725978656356,-500.0,0.00018021,2]
[337704580,1725978656372,-500.0,0.00018021,2]
[337704581,1725978656389,-500.0,0.00018021,2]
[337704582,1725978656406,-797.04,0.00018021,2]
[337704583,1725978656420,-500.0,0.00018021,2]
[337704584,1725978656434,-524.8,0.00018021,2]
[337704585,1725978656450,-500.0,0.00018021,2]
[337704586,1725978656468,-504.29700023,0.00018021,2]
[337704587,1725978656488,-500.0,0.00018021,2]
[337704588,1725978656504,-826.35,0.00018021,2]
[337704589,1725978656516,-565.8,0.00018021,2]
[337704590,1725978656533,-151.0,0.00018021,2]
[337704591,1725978656547,-500.0,0.00018021,2]
[337704592,1725978656564,-500.0,0.00018021,2]
[337704593,1725978656588,-765.33,0.00018021,2]
[337704594,1725978656600,-500.0,0.00018021,2]
[337704595,1725978656614,-1592.89,0.00018021,2]
[337704596,1725978656626,-884.69,0.00018021,2]
[337704597,1725978656641,-500.0,0.00018021,2]
[337704598,1725978656656,-830.41,0.00018021,2]
[337704599,1725978656669,-151.0,0.00018021,2]
[337704600,1725978656684,-273.63235,0.00018021,2]
[337704601,1725978656698,-273.63235,0.00018021,2]
[337704602,1725978656711,-153.4664,0.00018021,2]
[337704603,1725978656724,-151.0,0.00018021,2]
[337704604,1725978656739,-151.0,0.00018021,2]
[337704605,1725978656751,-151.0,0.00018021,2]
[337704606,1725978656766,-151.0,0.00018021,2]
[337704607,1725978656780,-151.0,0.00018021,2]
[337704608,1725978656794,-218.145404,0.00018021,2]
[337704609,1725978656808,-218.145404,0.00018021,2]
[337704610,1725978656824,-4754.5940557,0.00018073,2]
[337704611,1725978656839,-2988.56076655,0.00018209,2]
[337704612,1725978656852,-500.0,0.0001826,2]
[337704613,1725978656866,-611.63,0.0001826,2]
[337704614,1725978656880,-369.90334365,0.00018273,2]
[337704615,1725978656895,-179.09776483,0.00018273,2]
[337704616,1725978656908,-336.3405794,0.00018273,2]
[337704617,1725978656921,-500.0,0.00018273,2]
[337704618,1725978656935,-160.00133325,0.00018273,2]
[337704619,1725978656948,-178.56761845,0.00018273,2]
[337704620,1725978656962,-506.26058925,0.00018273,2]
[337704621,1725978656976,-349.96572379,0.00018273,2]
[337704622,1725978656989,-500.0,0.00018273,2]
[337704623,1725978657004,-500.0,0.00018273,2]
[337704624,1725978657017,-500.0,0.00018273,2]
[337704625,1725978657031,-500.0,0.00018273,2]
[337704626,1725978657046,-500.0,0.00018273,2]
[337704627,1725978657060,-500.0,0.00018273,2]
[337704628,1725978657077,-1717.32,0.00018289,2]
[337704629,1725978657090,-3814.01,0.00018289,2]
[337704630,1725978657104,-682.55,0.00018289,2]
[337704631,1725978657117,-792.81,0.00018289,2]
[337704632,1725978657132,-774.66,0.00018289,2]
[337704633,1725978657146,-651.51,0.00018289,2]
[337704634,1725978657161,-500.0,0.0001829,2]
[337704635,1725978657174,-530.73057864,0.0001829,2]
[337704636,1725978657187,-1347.93,0.0001829,2]
[337704637,1725978657200,-500.0,0.0001829,2]
[337704638,1725978657213,-500.0,0.0001829,2]
[337704639,1725978657231,-946.51,0.0001829,2]
[337704640,1725978657244,-896.12,0.0001829,2]
[337704641,1725978657257,-560.68,0.0001829,2]
[337704642,1725978657268,-1460.92,0.0001829,2]
[337704643,1725978657278,-500.0,0.0001829,2]
[337704644,1725978657287,-719.06,0.0001829,2]
[337704645,1725978657297,-500.0,0.0001829,2]
[337704646,1725978657307,-6457.87,0.0001829,2]
[337704647,1725978657319,-3655.78,0.0001829,2]
[337704648,1725978657329,-500.0,0.0001829,2]
[337704649,1725978657339,-825.61,0.0001829,2]
[337704650,1725978657349,-500.0,0.0001829,2]
[337704651,1725978657358,-1083.82,0.0001829,2]
[337704652,1725978657367,-500.0,0.0001829,2]
[337704653,1725978657377,-3373.62,0.0001829,2]
[337704654,1725978657386,-500.0,0.0001829,2]
[337704655,1725978657396,-814.19,0.0001829,2]
[337704656,1725978657405,-1239.77,0.0001829,2]
[337704657,1725978657414,-1160.5909577,0.0001829,2]
[337704658,1725978658395,157.57,0.00010959,2]
[337706233,1725979832755,-1017.5147114,0.00017336,2]
[337706235,1725979832767,-736.25115,0.00017336,2]
[337706236,1725979832782,-1929.23551395,0.00017336,2]
[337706292,1725979837909,-338.59778102,0.00017336,2]
[337706293,1725979837924,-1422.03249927,0.00017336,2]
[337706294,1725979837934,-2690.62533061,0.00017337,2]
[337706295,1725979837944,-1000.0,0.00017405,2]
[337706296,1725979837953,-300.0,0.00017405,2]
[337706297,1725979837964,-300.0,0.00017405,2]
[337706298,1725979837974,-2690.62533059,0.00017406,2]